fUSD/lending_fUSD_20260601
["ID","MTS","AMOUNT","RATE_DAILY","PERIOD"]
[423613564,1780260642000,-8922.86,0.00027397,10]
[423613562,1780260642000,-300.0,0.00027397,2]
[423613560,1780260642000,-231.54,0.00027397,2]
[423613541,1780260642000,-966.33,0.000264,7]
[423613548,1780260642000,-2000.0,0.00027053,2]
[423613546,1780260642000,-500.0,0.0002674,2]
[423613544,1780260642000,-1000.0,0.00026636,2]
[423613556,1780260642000,-426.2,0.00027397,30]
[423613552,1780260642000,-2000.0,0.0002711,7]
[423613558,1780260642000,-1500.0,0.00027397,2]
[423613595,1780260642000,-621.0,0.00028205,3]
[423613598,1780260642000,-173.77986174,0.00028384,2]
[423613578,1780260642000,-763.1,0.00027846,7]
[423613568,1780260642000,-636.09,0.000274,7]
[423613574,1780260642000,-621.0,0.00027671,2]
[423613572,1780260642000,-35032.9760675,0.00027517,2]
[423613570,1780260642000,-340.5,0.000274,7]
[423613583,1780260642000,-1356.0,0.00028089,2]
[423613585,1780260642000,-3550.0,0.00028089,2]
[423613587,1780260642000,-1273.0,0.00028089,2]
[423613589,1780260642000,-525.0,0.00028089,2]
[423613603,1780260642000,-156.15650475,0.00028384,2]
[423613605,1780260642000,-340.5,0.000284,7]
[423613607,1780260642000,-230.53775102,0.00028403,2]
[423613601,1780260642000,-166.11075189,0.00028384,2]
[423613554,1780260642000,-621.0,0.00027137,2]
[423613581,1780260642000,-544.951,0.00028089,2]
[423613550,1780260642000,-3906.77,0.00027105,7]
[423613509,1780260642000,-197.5,0.00025234,30]
[423613530,1780260642000,-537.13,0.00025786,2]
[423613480,1780260642000,-203.0,0.00025,2]
[423613482,1780260642000,-366.0,0.00025,2]
[423613484,1780260642000,-779.0,0.00025,2]
[423613485,1780260642000,-393.0,0.00025,2]
[423613486,1780260642000,-497.0,0.00025,2]
[423613489,1780260642000,-1112.135698,0.00025,2]
[423613496,1780260642000,-1356.0,0.00025089,2]
[423613492,1780260642000,-928.0,0.00025089,2]
[423613494,1780260642000,-165.184,0.00025089,2]
[423613488,1780260642000,-269.0,0.00025,2]
[423613500,1780260642000,-1273.0,0.00025089,2]
[423613502,1780260642000,-525.0,0.00025089,2]
[423613504,1780260642000,-418.0,0.00025089,2]
[423613540,1780260642000,-512.3,0.00026296,2]
[423613498,1780260642000,-3550.0,0.00025089,2]
[423613507,1780260642000,-932.0,0.00025089,2]
[423613538,1780260642000,-13160.8405489,0.00026196,2]
[423613523,1780260642000,-2877.9,0.00025786,2]
[423613532,1780260642000,-500.0,0.00026,2]
[423613534,1780260642000,-459.45332818,0.00026122,2]
[423613517,1780260642000,-500.0,0.00025362,2]
[423613519,1780260642000,-150.73,0.00025644,2]
[423613521,1780260642000,-442.27,0.00025786,2]
[423613536,1780260642000,-11347.38968608,0.00026193,2]
[423613515,1780260642000,-157.06,0.00025345,2]
[423613528,1780260642000,-731.85,0.00025786,2]
[423613513,1780260642000,-150.0,0.00025334,22]
[423613526,1780260642000,-176.1,0.00025786,2]
[423613511,1780260642000,-3906.77,0.00025329,7]
[423613596,1780260642000,-512.3,0.00028267,2]
[423613633,1780260642000,-185.4332109,0.00028463,2]
[423613594,1780260642000,-932.0,0.00028089,2]
[423613651,1780260642000,-165.27,0.00029014,30]
[423613654,1780260642000,-154.9,0.0002902,2]
[423613656,1780260642000,-165.27,0.00029027,2]
[423613653,1780260642000,-874.53,0.00029018,7]
[423613652,1780260642000,-628.65,0.00029017,30]
[423613660,1780260642000,-878.85,0.00029037,7]
[423613663,1780260642000,-165.27,0.0002904,7]
[423613666,1780260642000,-154.9,0.00029046,30]
[423613669,1780260642000,-282.23,0.00029051,30]
[423613671,1780260642000,-165.27,0.00029053,30]
[423613681,1780260642000,-754.93,0.00029076,30]
[423613684,1780260642000,-165.27,0.00029078,7]
[423613687,1780260642000,-154.9,0.00029086,30]
[423613650,1780260642000,-165.27,0.00029001,7]
[423613689,1780260642000,-165.27,0.00029091,30]
[423613675,1780260642000,-165.27,0.00029066,2]
[423613673,1780260642000,-154.9,0.00029059,2]
[423613691,1780260642000,-154.9,0.00029099,2]
[423613693,1780260642000,-14897.66,0.000291,2]
[423613695,1780260642000,-11036.98,0.000291,2]
[423613697,1780260642000,-165.27,0.00029104,2]
[423613699,1780260642000,-154.9,0.00029113,7]
[423613703,1780260642000,-165.27,0.00029117,7]
[423613705,1780260642000,-154.9,0.00029126,30]
[423613711,1780260642000,-628.65,0.00029141,7]
[423613709,1780260642000,-154.9,0.00029139,2]
[423613707,1780260642000,-165.27,0.0002913,30]
[423613592,1780260642000,-418.0,0.00028089,2]
[423613678,1780260642000,-154.9,0.00029073,7]
[423613647,1780260642000,-165.27,0.00028989,2]
[423613701,1780260642000,-484.58,0.00029115,30]
[423613649,1780260642000,-3906.77,0.00029,7]
[423613658,1780260642000,-154.9,0.00029033,7]
[423613611,1780260642000,-166.3183966,0.00028403,2]
[423613613,1780260642000,-161.90372201,0.00028403,2]
[423613615,1780260642000,-161.35566711,0.00028403,2]
[423613628,1780260642000,-260.15294102,0.00028463,2]
[423613629,1780260642000,-281.0895347,0.00028463,2]
[423613617,1780260642000,-166.91214356,0.00028403,2]
[423613630,1780260642000,-270.12294958,0.00028463,2]
[423613619,1780260642000,-3729.7594561,0.00028414,2]
[423613621,1780260642000,-171.04010141,0.00028463,2]
[423613626,1780260642000,-164.15872095,0.00028463,2]
[423613627,1780260642000,-193.98409769,0.00028463,2]
[423613624,1780260642000,-161.92087944,0.00028463,2]
[423613634,1780260642000,-154.06848018,0.00028463,2]
[423613609,1780260642000,-222.13718411,0.00028403,2]
[423613632,1780260642000,-164.48780133,0.00028463,2]
[423613631,1780260642000,-187.09850581,0.00028463,2]
[423613645,1780260642000,-490.29386801,0.00028966,2]
[423613644,1780260642000,-878.85,0.000289,30]
[423613643,1780260642000,-874.53,0.00028879,30]
[423613642,1780260642000,-2319.0,0.0002885,3]
[423613639,1780260642000,-191.12378792,0.00028504,2]
[423613646,1780260642000,-188.64740034,0.00028971,2]
[423613641,1780260642000,-340.96,0.00028767,30]
[423613636,1780260642000,-156.84350314,0.00028463,2]
[423613638,1780260642000,-205.31326045,0.00028502,2]
[423613637,1780260642000,-966.33,0.000285,7]
[423613640,1780260642000,-621.0,0.00028739,3]
[423613635,1780260642000,-158.05797018,0.00028463,2]
[423613797,1780260643000,-466.0,0.00029316,2]
[423613792,1780260643000,-500.0,0.00029316,2]
[423613794,1780260643000,-500.0,0.00029316,2]
[423613791,1780260643000,-466.0,0.00029316,2]
[423613790,1780260643000,-878.85,0.00029312,30]
[423613765,1780260643000,-874.53,0.00029298,30]
[423613789,1780260643000,-754.93,0.00029311,2]
[423613772,1780260643000,-340.5,0.000293,7]
[423613757,1780260643000,-165.3,0.00029232,7]
[423613793,1780260643000,-500.0,0.00029316,2]
[423613798,1780260643000,-245.49911136,0.00029316,2]
[423613815,1780260643000,-466.0,0.00029316,2]
[423613801,1780260643000,-466.0,0.00029316,2]
[423613807,1780260643000,-210.25906995,0.00029316,2]
[423613805,1780260643000,-466.0,0.00029316,2]
[423613809,1780260643000,-466.0,0.00029316,2]
[423613819,1780260643000,-466.0,0.00029316,2]
[423613811,1780260643000,-466.0,0.00029316,2]
[423613817,1780260643000,-466.0,0.00029316,2]
[423613813,1780260643000,-466.0,0.00029316,2]
[423613761,1780260643000,-621.0,0.00029273,4]
[423613822,1780260643000,-466.0,0.00029316,2]
[423613803,1780260643000,-500.0,0.00029316,2]
[423613753,1780260643000,-484.58,0.00029228,7]
[423613739,1780260643000,-754.93,0.00029193,7]
[423613767,1780260643000,-3347.22,0.000293,14]
[423613824,1780260643000,-466.0,0.00029316,2]
[423613713,1780260643000,-165.27,0.00029143,2]
[423613715,1780260643000,-154.9,0.00029153,7]
[423613717,1780260643000,-165.27,0.00029155,7]
[423613722,1780260643000,-154.9,0.00029166,30]
[423613720,1780260643000,-874.53,0.00029158,2]
[423613724,1780260643000,-165.27,0.00029168,30]
[423613726,1780260643000,-1590.0,0.0002917,3]
[423613737,1780260643000,-154.9,0.00029192,7]
[423613741,1780260643000,-165.27,0.00029194,7]
[423613763,1780260643000,-282.23,0.00029292,2]
[423613729,1780260643000,-282.23,0.00029171,7]
[423613735,1780260643000,-165.27,0.00029181,2]
[423613731,1780260643000,-878.85,0.00029174,2]
[423613743,1780260643000,-636.09,0.000292,7]
[423613745,1780260643000,-154.9,0.00029206,30]
[423613748,1780260643000,-165.27,0.00029207,30]
[423613749,1780260643000,-154.9,0.00029219,2]
[423613759,1780260643000,-628.65,0.00029265,2]
[423613770,1780260643000,-341.11,0.000293,30]
[423613751,1780260643000,-165.27,0.0002922,2]
[423613755,1780260643000,-155.05,0.00029232,7]
[423613733,1780260643000,-154.9,0.00029179,2]
[423613823,1780260643000,-466.0,0.00029316,2]
[423613839,1780260643000,-466.0,0.00029316,2]
[423613828,1780260643000,-466.0,0.00029316,2]
[423613890,1780260643000,-500.0,0.00029316,2]
[423613896,1780260643000,-500.0,0.00029316,2]
[423613899,1780260643000,-500.0,0.00029316,2]
[423613879,1780260643000,-272.9051425,0.00029316,2]
[423613881,1780260643000,-500.0,0.00029316,2]
[423613888,1780260643000,-500.0,0.00029316,2]
[423613885,1780260643000,-500.0,0.00029316,2]
[423613901,1780260643000,-500.0,0.00029316,2]
[423613914,1780260643000,-350.90097659,0.00029316,2]
[423613912,1780260643000,-565.0,0.00029316,2]
[423613909,1780260643000,-500.0,0.00029316,2]
[423613916,1780260643000,-565.0,0.00029316,2]
[423613907,1780260643000,-500.0,0.00029316,2]
[423613905,1780260643000,-500.0,0.00029316,2]
[423613918,1780260643000,-565.0,0.00029316,2]
[423613920,1780260643000,-565.0,0.00029316,2]
[423613922,1780260643000,-565.0,0.00029316,2]
[423613924,1780260643000,-565.0,0.00029316,2]
[423613926,1780260643000,-565.0,0.00029316,2]
[423613928,1780260643000,-565.0,0.00029316,2]
[423613932,1780260643000,-565.0,0.00029316,2]
[423613930,1780260643000,-565.0,0.00029316,2]
[423613826,1780260643000,-466.0,0.00029316,2]
[423613877,1780260643000,-500.0,0.00029316,2]
[423613894,1780260643000,-500.0,0.00029316,2]
[423613903,1780260643000,-394.83639376,0.00029316,2]
[423613892,1780260643000,-500.0,0.00029316,2]
[423613883,1780260643000,-500.0,0.00029316,2]
[423613841,1780260643000,-466.0,0.00029316,2]
[423613830,1780260643000,-466.0,0.00029316,2]
[423613833,1780260643000,-466.0,0.00029316,2]
[423613835,1780260643000,-466.0,0.00029316,2]
[423613831,1780260643000,-466.0,0.00029316,2]
[423613843,1780260643000,-466.0,0.00029316,2]
[423613845,1780260643000,-468.48877466,0.00029316,2]
[423613847,1780260643000,-500.0,0.00029316,2]
[423613849,1780260643000,-500.0,0.00029316,2]
[423613851,1780260643000,-500.0,0.00029316,2]
[423613837,1780260643000,-466.0,0.00029316,2]
[423613855,1780260643000,-500.0,0.00029316,2]
[423613860,1780260643000,-500.0,0.00029316,2]
[423613864,1780260643000,-500.0,0.00029316,2]
[423613853,1780260643000,-500.0,0.00029316,2]
[423613857,1780260643000,-500.0,0.00029316,2]
[423613862,1780260643000,-500.0,0.00029316,2]
[423613866,1780260643000,-500.0,0.00029316,2]
[423613868,1780260643000,-500.0,0.00029316,2]
[423613870,1780260643000,-500.0,0.00029316,2]
[423613872,1780260643000,-500.0,0.00029316,2]
[423613875,1780260643000,-500.0,0.00029316,2]
[423614018,1780260644000,-500.0,0.00029316,2]
[423614008,1780260644000,-500.0,0.00029316,2]
[423614010,1780260644000,-500.0,0.00029316,2]
[423614016,1780260644000,-500.0,0.00029316,2]
[423614006,1780260644000,-500.0,0.00029316,2]
[423613997,1780260644000,-500.0,0.00029316,2]
[423614014,1780260644000,-500.0,0.00029316,2]
[423614012,1780260644000,-633.12700021,0.00029316,2]
[423614002,1780260644000,-500.0,0.00029316,2]
[423613999,1780260644000,-500.0,0.00029316,2]
[423614020,1780260644000,-500.0,0.00029316,2]
[423614004,1780260644000,-500.0,0.00029316,2]
[423614022,1780260644000,-500.0,0.00029316,2]
[423614045,1780260644000,-150.0,0.00029316,2]
[423614036,1780260644000,-649.24403707,0.00029316,2]
[423614026,1780260644000,-500.0,0.00029316,2]
[423614038,1780260644000,-500.0,0.00029316,2]
[423614040,1780260644000,-166.89214839,0.00029316,2]
[423614032,1780260644000,-500.0,0.00029316,2]
[423614030,1780260644000,-500.0,0.00029316,2]
[423614034,1780260644000,-500.0,0.00029316,2]
[423614042,1780260644000,-500.0,0.00029316,2]
[423614049,1780260644000,-500.0,0.00029316,2]
[423614043,1780260644000,-500.0,0.00029316,2]
[423614047,1780260644000,-500.0,0.00029316,2]
[423613993,1780260644000,-500.0,0.00029316,2]
[423614024,1780260644000,-500.0,0.00029316,2]
[423613995,1780260644000,-500.0,0.00029316,2]
[423613935,1780260644000,-565.0,0.00029316,2]
[423613985,1780260644000,-500.0,0.00029316,2]
[423614053,1780260644000,-500.0,0.00029316,2]
[423613937,1780260644000,-565.0,0.00029316,2]
[423613939,1780260644000,-565.0,0.00029316,2]
[423613941,1780260644000,-565.0,0.00029316,2]
[423613943,1780260644000,-565.0,0.00029316,2]
[423613949,1780260644000,-565.0,0.00029316,2]
[423613947,1780260644000,-565.0,0.00029316,2]
[423613945,1780260644000,-565.0,0.00029316,2]
[423613951,1780260644000,-565.0,0.00029316,2]
[423613953,1780260644000,-565.0,0.00029316,2]
[423613964,1780260644000,-500.0,0.00029316,2]
[423613960,1780260644000,-565.0,0.00029316,2]
[423613983,1780260644000,-500.0,0.00029316,2]
[423613955,1780260644000,-565.0,0.00029316,2]
[423613962,1780260644000,-569.2367486,0.00029316,2]
[423613966,1780260644000,-500.0,0.00029316,2]
[423613968,1780260644000,-500.0,0.00029316,2]
[423613970,1780260644000,-500.0,0.00029316,2]
[423613972,1780260644000,-500.0,0.00029316,2]
[423613974,1780260644000,-500.0,0.00029316,2]
[423613987,1780260644000,-500.0,0.00029316,2]
[423613989,1780260644000,-500.0,0.00029316,2]
[423613991,1780260644000,-602.68629337,0.00029316,2]
[423613976,1780260644000,-500.0,0.00029316,2]
[423613981,1780260644000,-500.0,0.00029316,2]
[423613979,1780260644000,-500.0,0.00029316,2]
[423613957,1780260644000,-565.0,0.00029316,2]
[423614063,1780260644000,-484.58,0.00029342,2]
[423614028,1780260644000,-500.0,0.00029316,2]
[423614051,1780260644000,-150.0,0.00029316,2]
[423614116,1780260644000,-461.07550205,0.00029734,2]
[423614120,1780260644000,-332.6367932,0.00029734,2]
[423614125,1780260644000,-202.43701426,0.00029734,2]
[423614127,1780260644000,-207.70816275,0.00029734,2]
[423614129,1780260644000,-323.80744402,0.00029734,2]
[423614123,1780260644000,-221.76764193,0.00029734,2]
[423614131,1780260644000,-197.27832687,0.00029734,2]
[423614138,1780260644000,-158.50637335,0.00029734,2]
[423614136,1780260644000,-202.13014603,0.00029734,2]
[423614134,1780260644000,-322.71133421,0.00029734,2]
[423614140,1780260644000,-170.40289336,0.00029734,2]
[423614145,1780260644000,-160.0,0.00029748,30]
[423614118,1780260644000,-444.27436821,0.00029734,2]
[423614143,1780260644000,-333.82428713,0.00029734,2]
[423614159,1780260644000,-778.0,0.00029748,30]
[423614152,1780260644000,-151.0,0.00029748,30]
[423614165,1780260644000,-481.0,0.00029769,30]
[423614147,1780260644000,-506.0,0.00029748,30]
[423614154,1780260644000,-354.0,0.00029748,30]
[423614149,1780260644000,-187.0,0.00029748,30]
[423614163,1780260644000,-387.0,0.00029769,30]
[423614156,1780260644000,-156.0,0.00029748,30]
[423614167,1780260644000,-265.0,0.00029769,30]
[423614171,1780260644000,-864.0,0.00029769,30]
[423614169,1780260644000,-1097.0,0.00029769,30]
[423614176,1780260644000,-754.93,0.00029783,30]
[423614161,1780260644000,-628.65,0.00029763,30]
[423614114,1780260644000,-878.85,0.00029724,30]
[423614178,1780260644000,-484.58,0.00029796,30]
[423614108,1780260644000,-332.22150377,0.00029714,2]
[423614112,1780260644000,-874.53,0.00029717,30]
[423614060,1780260644000,-500.0,0.00029316,2]
[423614066,1780260644000,-628.65,0.0002939,30]
[423614055,1780260644000,-193.19710807,0.00029316,2]
[423614058,1780260644000,-500.0,0.00029316,2]
[423614068,1780260644000,-282.23,0.00029412,30]
[423614069,1780260644000,-754.93,0.00029429,30]
[423614174,1780260644000,-282.23,0.00029774,30]
[423614072,1780260644000,-874.53,0.00029438,7]
[423614073,1780260644000,-878.85,0.00029449,7]
[423614085,1780260644000,-150.0,0.00029534,2]
[423614077,1780260644000,-578.12,0.0002948,7]
[423614087,1780260644000,-754.93,0.00029547,7]
[423614075,1780260644000,-484.58,0.00029455,30]
[423614062,1780260644000,-526.8837841,0.00029316,2]
[423614081,1780260644000,-628.65,0.00029514,7]
[423614078,1780260644000,-1590.0,0.0002949,3]
[423614106,1780260644000,-347.55972349,0.00029714,2]
[423614110,1780260644000,-312.3130095,0.00029714,2]
[423614104,1780260644000,-1000.0,0.000297,7]
[423614100,1780260644000,-754.93,0.00029665,2]
[423614098,1780260644000,-282.23,0.00029654,2]
[423614102,1780260644000,-484.58,0.00029682,2]
[423614091,1780260644000,-874.53,0.00029577,2]
[423614093,1780260644000,-878.85,0.00029587,2]
[423614090,1780260644000,-484.58,0.00029569,7]
[423614079,1780260644000,-253.1,0.00029512,2]
[423614083,1780260644000,-282.23,0.00029533,7]
[423614096,1780260644000,-628.65,0.00029639,2]
[423614241,1780260645000,-628.65,0.00029888,7]
[423614245,1780260645000,-754.93,0.00029901,7]
[423614247,1780260645000,-484.58,0.00029909,7]
[423614243,1780260645000,-282.23,0.00029895,7]
[423614249,1780260645000,-874.53,0.00029997,2]
[423614236,1780260645000,-226.2217868,0.00029838,2]
[423614254,1780260645000,-1132.09587775,0.0003,7]
[423614250,1780260645000,-878.85,0.00029999,2]
[423614239,1780260645000,-878.85,0.00029862,7]
[423614237,1780260645000,-874.53,0.00029857,7]
[423614252,1780260645000,-1132.09587775,0.0003,7]
[423614256,1780260645000,-340.5,0.0003,7]
[423614262,1780260645000,-754.93,0.00030019,2]
[423614260,1780260645000,-282.23,0.00030016,2]
[423614264,1780260645000,-484.58,0.00030023,2]
[423614270,1780260645000,-1600.0,0.0003006,3]
[423614269,1780260645000,-1590.0,0.0003006,3]
[423614235,1780260645000,-382.24757583,0.00029838,2]
[423614266,1780260645000,-2000.0,0.00030029,32]
[423614274,1780260645000,-2000.0,0.00030129,15]
[423614273,1780260645000,-966.33,0.000301,7]
[423614277,1780260645000,-200.0,0.0003013,2]
[423614281,1780260645000,-200.0,0.0003013,2]
[423614278,1780260645000,-200.0,0.0003013,2]
[423614283,1780260645000,-2000.0,0.00030136,25]
[423614286,1780260645000,-266.29,0.00030136,8]
[423614258,1780260645000,-628.65,0.00030012,2]
[423614234,1780260645000,-177.55092032,0.00029837,2]
[423614227,1780260645000,-316.11594037,0.00029796,2]
[423614232,1780260645000,-168.51375674,0.00029837,2]
[423614284,1780260645000,-484.58,0.00030136,30]
[423614180,1780260645000,-342.08020282,0.00029796,2]
[423614182,1780260645000,-323.84175887,0.00029796,2]
[423614191,1780260645000,-196.31984298,0.00029796,2]
[423614184,1780260645000,-156.06823759,0.00029796,2]
[423614189,1780260645000,-328.3174419,0.00029796,2]
[423614186,1780260645000,-190.67469315,0.00029796,2]
[423614193,1780260645000,-387.96819538,0.00029796,2]
[423614195,1780260645000,-191.53533824,0.00029796,2]
[423614197,1780260645000,-520.30588204,0.00029796,2]
[423614199,1780260645000,-562.1790694,0.00029796,2]
[423614211,1780260645000,-174.22859941,0.00029796,2]
[423614230,1780260645000,-1590.0,0.0002981,3]
[423614213,1780260645000,-216.16440807,0.00029796,2]
[423614215,1780260645000,-374.19701162,0.00029796,2]
[423614209,1780260645000,-167.66732712,0.00029796,2]
[423614206,1780260645000,-540.24589915,0.00029796,2]
[423614220,1780260645000,-328.97560266,0.00029796,2]
[423614222,1780260645000,-191.00236268,0.00029796,2]
[423614218,1780260645000,-204.54915868,0.00029796,2]
[423614224,1780260645000,-370.86642179,0.00029796,2]
[423614226,1780260645000,-308.13696036,0.00029796,2]
[423614228,1780260645000,-313.68700628,0.00029796,2]
[423614229,1780260645000,-621.0,0.00029807,4]
[423614231,1780260645000,-180.39166326,0.00029837,2]
[423614233,1780260645000,-410.62652089,0.00029837,2]
[423614202,1780260645000,-202.86114975,0.00029796,2]
[423614204,1780260645000,-196.01566885,0.00029796,2]
[423614299,1780260645000,-166.5970789,0.00030137,2]
[423614288,1780260645000,-754.98,0.00030136,30]
[423614365,1780260645000,-223.18287409,0.00030621,2]
[423614361,1780260645000,-243.91893435,0.00030621,2]
[423614363,1780260645000,-498.9551898,0.00030621,2]
[423614367,1780260645000,-227.62843495,0.00030621,2]
[423614379,1780260645000,-244.12837274,0.00030621,2]
[423614377,1780260645000,-485.71116604,0.00030621,2]
[423614383,1780260645000,-484.06700132,0.00030621,2]
[423614381,1780260645000,-394.55665374,0.00030621,2]
[423614373,1780260645000,-691.61325307,0.00030621,2]
[423614369,1780260645000,-443.53528387,0.00030621,2]
[423614375,1780260645000,-415.41632549,0.00030621,2]
[423614371,1780260645000,-404.87402852,0.00030621,2]
[423614388,1780260645000,-296.85808486,0.00030621,2]
[423614390,1780260645000,-317.01274671,0.00030621,2]
[423614392,1780260645000,-340.80578671,0.00030621,2]
[423614394,1780260645000,-500.73643069,0.00030621,2]
[423614399,1780260645000,-35032.9760675,0.00030645,2]
[423614397,1780260645000,-85213.76482399,0.00030645,2]
[423614401,1780260645000,-3906.77,0.00030658,7]
[423614403,1780260645000,-513.12030423,0.00030685,2]
[423614407,1780260645000,-241.93570359,0.00030685,2]
[423614405,1780260645000,-485.76263831,0.00030685,2]
[423614409,1780260645000,-215.51762865,0.00030685,2]
[423614411,1780260645000,-293.8965262,0.00030685,2]
[423614414,1780260645000,-166.95919349,0.00030685,2]
[423614416,1780260645000,-295.05080976,0.00030685,2]
[423614305,1780260645000,-241.54,0.00030137,2]
[423614348,1780260645000,-11347.38968608,0.00030529,2]
[423614346,1780260645000,-200.0,0.00030431,2]
[423614386,1780260645000,-404.26029206,0.00030621,2]
[423614359,1780260645000,-666.41155232,0.00030621,2]
[423614344,1780260645000,-200.0,0.00030431,2]
[423614303,1780260645000,-1000.0,0.00030137,3]
[423614307,1780260645000,-7244.9602,0.00030137,25]
[423614291,1780260645000,-231.54,0.00030137,2]
[423614293,1780260645000,-200.0,0.00030137,2]
[423614295,1780260645000,-1011.43,0.00030137,30]
[423614297,1780260645000,-172.83700358,0.00030137,2]
[423614313,1780260645000,-248.22,0.00030137,2]
[423614309,1780260645000,-1221.17444882,0.00030137,25]
[423614311,1780260645000,-248.22,0.00030137,2]
[423614317,1780260645000,-244.88,0.00030137,2]
[423614315,1780260645000,-248.22,0.00030137,2]
[423614325,1780260645000,-369.122462,0.000302,2]
[423614327,1780260645000,-266.29,0.00030236,7]
[423614301,1780260645000,-333.1941578,0.00030137,2]
[423614357,1780260645000,-468.46951425,0.00030601,2]
[423614319,1780260645000,-244.88,0.00030137,2]
[423614323,1780260645000,-636.09,0.000302,7]
[423614330,1780260645000,-512.3,0.00030239,2]
[423614332,1780260645000,-621.0,0.00030341,5]
[423614334,1780260645000,-2788.08232536,0.00030352,14]
[423614338,1780260645000,-1590.0,0.0003038,3]
[423614336,1780260645000,-560.78,0.00030365,7]
[423614351,1780260645000,-521.33958523,0.00030601,2]
[423614321,1780260645000,-244.88,0.00030137,2]
[423614354,1780260645000,-498.33225566,0.00030601,2]
[423614342,1780260645000,-200.0,0.00030431,2]
[423614340,1780260645000,-165.15,0.00030411,120]
[423614482,1780260646000,-780.45882306,0.00030685,2]
[423614484,1780260646000,-3347.22,0.000307,14]
[423614472,1780260646000,-493.46340399,0.00030685,2]
[423614478,1780260646000,-556.29963269,0.00030685,2]
[423614480,1780260646000,-297.3554536,0.00030685,2]
[423614481,1780260646000,-474.17391055,0.00030685,2]
[423614468,1780260646000,-561.29551743,0.00030685,2]
[423614479,1780260646000,-462.20544053,0.00030685,2]
[423614477,1780260646000,-382.00472536,0.00030685,2]
[423614474,1780260646000,-295.26397494,0.00030685,2]
[423614475,1780260646000,-280.24856263,0.00030685,2]
[423614483,1780260646000,-470.53050943,0.00030685,2]
[423614476,1780260646000,-154.56645105,0.00030685,2]
[423614486,1780260646000,-265.09182379,0.00030726,2]
[423614508,1780260646000,-200.0,0.00030736,2]
[423614490,1780260646000,-337.02751349,0.00030726,2]
[423614492,1780260646000,-615.93978134,0.00030726,2]
[423614503,1780260646000,-295.05186744,0.00030728,2]
[423614507,1780260646000,-200.0,0.00030736,2]
[423614505,1780260646000,-200.0,0.00030736,2]
[423614512,1780260646000,-354.0,0.00030748,30]
[423614494,1780260646000,-355.10184064,0.00030726,2]
[423614496,1780260646000,-236.01592391,0.00030728,2]
[423614498,1780260646000,-573.37136375,0.00030728,2]
[423614509,1780260646000,-506.0,0.00030748,30]
[423614510,1780260646000,-187.0,0.00030748,30]
[423614511,1780260646000,-151.0,0.00030748,30]
[423614488,1780260646000,-360.78332652,0.00030726,2]
[423614469,1780260646000,-298.66164108,0.00030685,2]
[423614426,1780260646000,-492.47616285,0.00030685,2]
[423614467,1780260646000,-155.29320833,0.00030685,2]
[423614433,1780260646000,-267.08008306,0.00030685,2]
[423614429,1780260646000,-392.63968597,0.00030685,2]
[423614418,1780260646000,-312.13647517,0.00030685,2]
[423614431,1780260646000,-581.95229306,0.00030685,2]
[423614420,1780260646000,-297.71261847,0.00030685,2]
[423614424,1780260646000,-381.3493863,0.00030685,2]